fUSD/lending_fUSD_20260207
["ID","MTS","AMOUNT","RATE_DAILY","PERIOD"]
[404749890,1770507066073,-500.0,0.00043835,120]
[404749891,1770507066084,-500.0,0.00043835,120]
[404749892,1770507066098,-573.81879162,0.00043835,120]
[404749893,1770507066108,-328.64511638,0.00043835,120]
[404749894,1770507066119,-500.0,0.00043835,120]
[404749895,1770507066130,-500.0,0.00043835,120]
[404749896,1770507066141,-500.0,0.00043835,120]
[404749897,1770507066151,-500.0,0.00043835,120]
[404749898,1770507066162,-500.0,0.00043835,120]
[404749899,1770507066172,-535.92820942,0.00043835,120]
[404749900,1770507066182,-500.0,0.00043835,120]
[404749901,1770507066192,-500.0,0.00043835,120]
[404749902,1770507066203,-500.0,0.00043835,120]
[404749903,1770507066213,-500.0,0.00043835,120]
[404749904,1770507066224,-500.0,0.00043835,120]
[404749905,1770507066235,-500.0,0.00043835,120]
[404749906,1770507066245,-516.98076348,0.00043835,120]
[404749907,1770507066255,-500.0,0.00043835,120]
[404749908,1770507066265,-501.63,0.00043835,120]
[404749909,1770507066275,-545.06903036,0.00043835,120]
[404749910,1770507066286,-501.63,0.00043835,120]
[404749911,1770507066304,-501.63,0.00043835,120]
[404749912,1770507066315,-501.63,0.00043835,120]
[404749913,1770507066325,-501.63,0.00043835,120]
[404749914,1770507066337,-501.63,0.00043835,120]
[404749915,1770507066347,-501.63,0.00043835,120]
[404749916,1770507066358,-501.63,0.00043835,120]
[404749917,1770507066371,-501.63,0.00043835,120]
[404749918,1770507066381,-500.0,0.00043835,120]
[404749919,1770507066391,-532.33318004,0.00043835,120]
[404749920,1770507066407,-500.0,0.00043835,120]
[404749921,1770507066417,-500.0,0.00043835,120]
[404749922,1770507066428,-500.0,0.00043835,120]
[404749923,1770507066438,-500.0,0.00043835,120]
[404749924,1770507066448,-500.0,0.00043835,120]
[404749925,1770507066458,-500.0,0.00043835,120]
[404749926,1770507066468,-500.0,0.00043835,120]
[404749927,1770507066478,-500.0,0.00043835,120]
[404749928,1770507066488,-500.0,0.00043835,120]
[404749929,1770507066502,-500.0,0.00043835,120]
[404749930,1770507066512,-500.0,0.00043835,120]
[404749931,1770507066523,-500.0,0.00043835,120]
[404749932,1770507066533,-500.0,0.00043835,120]
[404749933,1770507066544,-500.0,0.00043835,120]
[404749934,1770507066554,-500.0,0.00043835,120]
[404749935,1770507066565,-500.0,0.00043835,120]
[404749936,1770507066575,-500.0,0.00043835,120]
[404749937,1770507066586,-518.1933326,0.00043835,120]
[404749938,1770507066595,-500.0,0.00043835,120]
[404749939,1770507066605,-369.94942401,0.00043835,120]
[404749940,1770507066616,-500.0,0.00043835,120]
[404749941,1770507066627,-500.0,0.00043835,120]
[404749942,1770507066637,-500.0,0.00043835,120]
[404749943,1770507066647,-500.0,0.00043835,120]
[404749944,1770507066658,-500.0,0.00043835,120]
[404749945,1770507066667,-500.0,0.00043835,120]
[404749946,1770507066678,-500.0,0.00043835,120]
[404749947,1770507066688,-533.35371012,0.00043835,120]
[404749948,1770507066702,-500.0,0.00043835,120]
[404749949,1770507066713,-500.0,0.00043835,120]
[404749950,1770507066723,-513.34338858,0.00043835,120]
[404749951,1770507066733,-504.08198973,0.00043835,120]
[404749952,1770507066743,-500.0,0.00043835,120]
[404749953,1770507066753,-500.0,0.00043835,120]
[404749954,1770507066763,-500.0,0.00043835,120]
[404749955,1770507066773,-500.0,0.00043835,120]
[404749956,1770507066783,-528.79297397,0.00043835,120]
[404749957,1770507066793,-500.0,0.00043835,120]
[404749958,1770507066803,-500.0,0.00043835,120]
[404749959,1770507066813,-500.0,0.00043835,120]
[404749960,1770507066824,-500.0,0.00043835,120]
[404749961,1770507066834,-500.0,0.00043835,120]
[404749962,1770507066844,-500.0,0.00043835,120]
[404749963,1770507066854,-532.00728494,0.00043835,120]
[404749964,1770507066865,-500.0,0.00043835,120]
[404749965,1770507066879,-500.0,0.00043835,120]
[404749966,1770507066891,-500.0,0.00043835,120]
[404749967,1770507066902,-500.0,0.00043835,120]
[404749968,1770507066913,-500.0,0.00043835,120]
[404749969,1770507066924,-500.0,0.00043835,120]
[404749970,1770507066936,-500.0,0.00043835,120]
[404749971,1770507066947,-500.0,0.00043835,120]
[404749972,1770507066959,-500.0,0.00043835,120]
[404749973,1770507066969,-500.0,0.00043835,120]
[404749974,1770507066979,-500.0,0.00043835,120]
[404749975,1770507066991,-500.0,0.00043835,120]
[404749976,1770507067001,-160.68793478,0.00043835,120]
[404749977,1770507067011,-500.0,0.00043835,120]
[404749978,1770507067021,-507.73115483,0.00043835,120]
[404749979,1770507067032,-500.0,0.00043835,120]
[404749980,1770507067043,-500.0,0.00043835,120]
[404749981,1770507067054,-500.0,0.00043835,120]
[404749982,1770507067065,-500.0,0.00043835,120]
[404749983,1770507067075,-500.0,0.00043835,120]
[404749984,1770507067086,-500.0,0.00043835,120]
[404749985,1770507067096,-500.0,0.00043835,120]
[404749986,1770507067106,-220.41391804,0.00043835,120]
[404749987,1770507067116,-500.0,0.00043835,120]
[404749988,1770507067127,-500.0,0.00043835,120]
[404749989,1770507067138,-500.0,0.00043835,120]
[404749990,1770507067149,-500.0,0.00043835,120]
[404749991,1770507067159,-500.0,0.00043835,120]
[404749992,1770507067170,-500.0,0.00043835,120]
[404749993,1770507067181,-500.0,0.00043835,120]
[404749994,1770507067191,-500.0,0.00043835,120]
[404749995,1770507067201,-500.0,0.00043835,120]
[404749996,1770507067211,-500.0,0.00043835,120]
[404749997,1770507067221,-500.0,0.00043835,120]
[404749998,1770507067231,-500.0,0.00043835,120]
[404749999,1770507067241,-500.0,0.00043835,120]
[404750000,1770507067251,-500.0,0.00043835,120]
[404750001,1770507067262,-269.83245445,0.00043835,120]
[404750002,1770507067272,-500.0,0.00043835,120]
[404750003,1770507067282,-525.73873558,0.00043835,120]
[404750004,1770507067297,-500.0,0.00043835,120]
[404750005,1770507067307,-500.0,0.00043835,120]
[404750006,1770507067318,-500.0,0.00043835,120]
[404750007,1770507067328,-518.22754755,0.00043835,120]
[404750008,1770507067339,-310.14151748,0.00043835,120]
[404750009,1770507067350,-500.0,0.00043835,120]
[404750010,1770507067362,-500.0,0.00043835,120]
[404750011,1770507067372,-500.0,0.00043835,120]
[404750012,1770507067383,-500.0,0.00043835,120]
[404750013,1770507067392,-500.0,0.00043835,120]
[404750014,1770507067402,-500.0,0.00043835,120]
[404750015,1770507067412,-500.0,0.00043835,120]
[404750016,1770507067422,-500.0,0.00043835,120]
[404750017,1770507067432,-518.16311361,0.00043835,120]
[404750018,1770507067442,-500.0,0.00043835,120]
[404750019,1770507067452,-500.0,0.00043835,120]
[404750020,1770507067462,-525.21045897,0.00043835,120]
[404750021,1770507067472,-500.0,0.00043835,120]
[404750022,1770507067482,-515.64527042,0.00043835,120]
[404750023,1770507067492,-500.0,0.00043835,120]
[404750024,1770507067502,-500.0,0.00043835,120]
[404750025,1770507067512,-500.0,0.00043835,120]
[404750026,1770507067522,-500.0,0.00043835,120]
[404750027,1770507067533,-500.0,0.00043835,120]
[404750028,1770507067543,-500.0,0.00043835,120]
[404750029,1770507067553,-500.0,0.00043835,120]
[404750030,1770507067563,-500.0,0.00043835,120]
[404750031,1770507067573,-500.0,0.00043835,120]
[404750032,1770507067584,-519.43818694,0.00043835,120]
[404750033,1770507067594,-500.0,0.00043835,120]
[404750034,1770507067604,-500.0,0.00043835,120]
[404750035,1770507067615,-486.45061493,0.00043835,120]
[404750036,1770507067625,-500.0,0.00043835,120]
[404750037,1770507067635,-500.0,0.00043835,120]
[404750038,1770507067646,-500.0,0.00043835,120]
[404750039,1770507067656,-500.0,0.00043835,120]
[404750040,1770507067667,-500.0,0.00043835,120]
[404750041,1770507067843,-500.0,0.00043835,120]
[404750042,1770507067853,-500.0,0.00043835,120]
[404750043,1770507067863,-500.0,0.00043835,120]
[404750044,1770507067872,-525.86659206,0.00043835,120]
[404750045,1770507067881,-500.0,0.00043835,120]
[404750046,1770507067890,-522.463333,0.00043835,120]
[404750047,1770507067899,-500.0,0.00043835,120]
[404750048,1770507067908,-500.0,0.00043835,120]
[404750049,1770507067917,-500.0,0.00043835,120]
[404750050,1770507067927,-500.0,0.00043835,120]
[404750051,1770507067936,-385.13249602,0.00043835,120]
[404750052,1770507067945,-500.0,0.00043835,120]
[404750053,1770507067955,-500.0,0.00043835,120]
[404750054,1770507067964,-500.0,0.00043835,120]
[404750055,1770507067974,-500.0,0.00043835,120]
[404750056,1770507067982,-500.0,0.00043835,120]
[404750057,1770507067992,-344.70633679,0.00043835,120]
[404750058,1770507068000,-500.0,0.00043835,120]
[404750059,1770507068009,-500.0,0.00043835,120]
[404750060,1770507068019,-178.06981994,0.00043835,120]
[404750061,1770507068028,-500.0,0.00043835,120]
[404750062,1770507068038,-500.0,0.00043835,120]
[404750063,1770507068047,-500.0,0.00043835,120]
[404750064,1770507068056,-500.0,0.00043835,120]
[404750065,1770507068066,-500.0,0.00043835,120]
[404750066,1770507068075,-500.0,0.00043835,120]
[404750067,1770507068084,-169.60052713,0.00043835,120]
[404750068,1770507068094,-500.0,0.00043835,120]
[404750069,1770507068103,-175.65594044,0.00043835,120]
[404750070,1770507068113,-500.0,0.00043835,120]
[404750071,1770507068122,-500.0,0.00043835,120]
[404750072,1770507068131,-500.0,0.00043835,120]
[404750073,1770507068141,-500.0,0.00043835,120]
[404750074,1770507068150,-500.0,0.00043835,120]
[404750075,1770507068159,-372.87805523,0.00043835,120]
[404750076,1770507068169,-301.93555933,0.00043835,120]
[404750077,1770507068179,-500.0,0.00043835,120]
[404750078,1770507068188,-500.0,0.00043835,120]
[404750079,1770507068197,-500.0,0.00043835,120]
[404750080,1770507068207,-500.0,0.00043835,120]
[404750081,1770507068216,-500.0,0.00043835,120]
[404750082,1770507068226,-500.0,0.00043835,120]
[404750083,1770507068235,-360.35224269,0.00043835,120]
[404750084,1770507068245,-500.0,0.00043835,120]
[404750085,1770507068255,-500.0,0.00043835,120]
[404750086,1770507068264,-500.0,0.00043835,120]
[404750087,1770507068274,-500.0,0.00043835,120]
[404750088,1770507068284,-500.0,0.00043835,120]
[404750089,1770507068297,-500.0,0.00043835,120]
[404750090,1770507068307,-500.0,0.00043835,120]
[404750091,1770507068316,-500.0,0.00043835,120]
[404750092,1770507068326,-500.0,0.00043835,120]
[404750093,1770507068337,-305.5561384,0.00043835,120]
[404750094,1770507068347,-500.0,0.00043835,120]
[404750095,1770507068357,-582.71404718,0.00043835,120]
[404750096,1770507068368,-502.07075929,0.00043835,120]
[404750097,1770507068378,-200.0,0.00043835,120]
[404750098,1770507068387,-1999.0,0.00043835,120]
[404750099,1770507068397,-168.50406066,0.00043835,120]
[404750100,1770507068406,-500.0,0.00043835,120]
[404750101,1770507068416,-500.0,0.00043835,120]
[404750102,1770507068425,-500.0,0.00043835,120]
[404750103,1770507068435,-439.92359491,0.00043835,120]
[404750104,1770507068444,-814.93,0.00043835,120]
[404750105,1770507068453,-814.93,0.00043835,120]
[404750106,1770507068463,-814.93,0.00043835,120]
[404750107,1770507068473,-814.93,0.00043835,120]
[404750108,1770507068483,-814.93,0.00043835,120]
[404750109,1770507068492,-814.93,0.00043835,120]
[404750110,1770507068502,-814.93,0.00043835,120]
[404750111,1770507068511,-814.93,0.00043835,120]
[404750112,1770507068521,-814.93,0.00043835,120]
[404750113,1770507068530,-814.93,0.00043835,120]
[404750114,1770507068540,-814.93,0.00043835,120]
[404750115,1770507068550,-814.93,0.00043835,120]
[404750116,1770507068560,-814.93,0.00043835,120]
[404750117,1770507068569,-814.93,0.00043835,120]
[404750118,1770507068579,-814.93,0.00043835,120]
[404750119,1770507068590,-814.93,0.00043835,120]
[404750120,1770507068600,-814.93,0.00043835,120]
[404750121,1770507068610,-814.93,0.00043835,120]
[404750122,1770507068620,-814.93,0.00043835,120]
[404750123,1770507068630,-814.93,0.00043835,120]
[404750124,1770507068639,-814.93,0.00043835,120]
[404750125,1770507068650,-814.93,0.00043835,120]
[404750126,1770507068660,-586.55091096,0.00043835,120]
[404750127,1770507068670,-814.93,0.00043835,120]
[404750128,1770507068680,-815.05133201,0.00043835,120]
[404750129,1770507068689,-578.47432123,0.00043835,120]
[404750130,1770507068699,-500.0,0.00043835,120]
[404750131,1770507068708,-530.37198261,0.00043835,120]
[404750132,1770507068718,-171.60401407,0.00043835,120]
[404750133,1770507068727,-500.0,0.00043835,120]
[404750134,1770507068737,-500.0,0.00043835,120]
[404750135,1770507068746,-500.0,0.00043835,120]
[404750136,1770507068756,-500.0,0.00043835,120]
[404750137,1770507068765,-500.0,0.00043835,120]
[404750138,1770507068775,-500.0,0.00043835,120]
[404750139,1770507068785,-500.0,0.00043835,120]
[404750140,1770507068795,-209.72917489,0.00043835,120]
[404750141,1770507068805,-225.49939605,0.00043835,120]
[404750142,1770507068815,-628.31257914,0.00043835,120]
[404750143,1770507068824,-193.48247632,0.00043835,14]
[404750144,1770507068834,-500.0,0.00043835,120]
[404750145,1770507068844,-500.0,0.00043835,120]
[404750146,1770507068853,-467.75981147,0.00043835,120]
[404750147,1770507068863,-500.0,0.00043835,120]
[404750148,1770507068872,-371.31706927,0.00043835,120]
[404750149,1770507068882,-500.0,0.00043835,120]
[404750150,1770507068891,-500.0,0.00043835,120]
[404750151,1770507068901,-500.0,0.00043835,120]
[404750152,1770507068910,-500.0,0.00043835,120]
[404750153,1770507068920,-500.0,0.00043835,120]
[404750154,1770507068929,-319.29852367,0.00043835,120]
[404750155,1770507068938,-500.0,0.00043835,120]
[404750156,1770507068947,-500.0,0.00043835,120]
[404750157,1770507068957,-500.0,0.00043835,120]
[404750158,1770507068967,-500.0,0.00043835,120]
[404750159,1770507068975,-500.0,0.00043835,120]
[404750160,1770507068985,-500.0,0.00043835,120]
[404750161,1770507068994,-500.0,0.00043835,120]
[404750162,1770507069004,-500.0,0.00043835,120]
[404750163,1770507069013,-500.0,0.00043835,120]
[404750164,1770507069022,-500.0,0.00043835,120]
[404750165,1770507069031,-500.0,0.00043835,120]
[404750166,1770507069040,-500.0,0.00043835,120]
[404750167,1770507069049,-192.48707619,0.00043835,120]
[404750168,1770507069059,-209.03365391,0.00043835,120]
[404750169,1770507069068,-500.0,0.00043835,120]
[404750170,1770507069077,-500.0,0.00043835,120]
[404750171,1770507069086,-500.0,0.00043835,120]
[404750172,1770507069096,-500.0,0.00043835,120]
[404750173,1770507069105,-500.0,0.00043835,120]
[404750174,1770507069114,-500.0,0.00043835,120]
[404750175,1770507069123,-500.0,0.00043835,120]
[404750176,1770507069133,-158.9088724,0.00043835,120]
[404750177,1770507069143,-500.0,0.00043835,120]
[404750178,1770507069152,-361.95679091,0.00043835,120]
[404750179,1770507069162,-206.94879255,0.00043835,120]
[404750180,1770507069171,-333.03193125,0.00043835,120]
[404750181,1770507069181,-500.0,0.00043835,120]
[404750182,1770507069190,-500.0,0.00043835,120]
[404750183,1770507069199,-596.97253825,0.00043835,120]
[404750184,1770507069209,-237.56980597,0.00043835,120]
[404750185,1770507069219,-322.47602067,0.00043835,120]
[404750186,1770507069228,-500.0,0.00043835,120]
[404750187,1770507069238,-500.0,0.00043835,120]
[404750188,1770507069247,-500.0,0.00043835,120]
[404750189,1770507069256,-500.0,0.00043835,120]
[404750190,1770507069265,-500.0,0.00043835,120]
[404750191,1770507069274,-500.0,0.00043835,120]
[404750192,1770507069283,-500.0,0.00043835,120]
[404750193,1770507069296,-179.67994106,0.00043835,120]
[404750194,1770507069305,-194.06724193,0.00043835,120]
[404750195,1770507069314,-256.62695533,0.00043835,120]
[404750196,1770507069322,-223.80485003,0.00043835,120]
[404750197,1770507069331,-500.0,0.00043835,120]
[404750198,1770507069341,-500.0,0.00043835,120]
[404750199,1770507069349,-500.0,0.00043835,120]
[404750200,1770507069358,-500.0,0.00043835,120]
[404750201,1770507069369,-500.0,0.00043835,120]
[404750202,1770507069378,-500.0,0.00043835,120]
[404750203,1770507069387,-243.53078136,0.00043835,120]
[404750204,1770507069397,-500.0,0.00043835,120]
[404750205,1770507069407,-500.0,0.00043835,120]
[404750206,1770507069416,-607.15445102,0.00043835,120]
[404750207,1770507069426,-500.0,0.00043835,120]
[404750208,1770507069435,-194.3954,0.00043835,120]
[404750209,1770507069445,-246.92634377,0.00043835,120]
[404750210,1770507069454,-235.6558339,0.00043835,30]
[404750211,1770507069463,-500.0,0.00043835,120]
[404750212,1770507069473,-500.0,0.00043835,120]
[404750213,1770507069483,-365.97248347,0.00043835,120]
[404750214,1770507069492,-500.0,0.00043835,120]
[404750215,1770507069502,-537.31174595,0.00043835,120]
[404750216,1770507069512,-265.32175288,0.00043835,120]
[404750217,1770507069521,-172.97329733,0.00043835,120]
[404750218,1770507069531,-500.0,0.00043835,120]
[404750219,1770507069540,-500.0,0.00043835,120]
[404750220,1770507069550,-162.53022899,0.00043835,120]
[404750221,1770507069559,-500.0,0.00043835,120]
[404750222,1770507069569,-500.0,0.00043835,120]
[404750223,1770507069578,-500.0,0.00043835,120]
[404750224,1770507069588,-500.0,0.00043835,120]
[404750225,1770507069597,-500.0,0.00043835,120]
[404750226,1770507069607,-500.0,0.00043835,120]
[404750227,1770507069617,-407.1396537,0.00043835,120]
[404750228,1770507069627,-500.0,0.00043835,120]
[404750229,1770507069636,-500.0,0.00043835,120]
[404750230,1770507069646,-219.22573578,0.00043835,120]
[404750231,1770507069655,-358.70613154,0.00043835,120]
[404750232,1770507069664,-500.0,0.00043835,120]
[404750233,1770507069674,-204.4124626,0.00043835,120]
[404750234,1770507069683,-341.35789632,0.00043835,120]
[404750235,1770507069692,-501.01345191,0.00043835,120]
[404750236,1770507069702,-500.0,0.00043835,120]
[404750237,1770507069712,-468.05477039,0.00043835,120]
[404750238,1770507069722,-281.77834943,0.00043835,120]
[404750239,1770507069731,-384.39588563,0.00043835,120]
[404750240,1770507069741,-500.0,0.00043835,120]
[404750241,1770507069751,-420.79637019,0.00043835,120]
[404750242,1770507069760,-500.0,0.00043835,2]
[404750243,1770507069770,-500.0,0.00043835,2]
[404750244,1770507069779,-500.0,0.00043835,2]
[404750245,1770507069789,-500.0,0.00043835,2]
[404750246,1770507069799,-452.39213667,0.00043835,120]
[404750247,1770507069810,-500.0,0.00043835,2]
[404750248,1770507069820,-500.0,0.00043835,2]
[404750249,1770507069831,-500.0,0.00043835,2]
[404750250,1770507069841,-500.0,0.00043835,2]
[404750251,1770507069851,-500.0,0.00043835,2]
[404750252,1770507069860,-500.0,0.00043835,2]
[404750253,1770507069870,-269.61392083,0.00043835,2]
[404750254,1770507069879,-500.0,0.00043835,2]
[404750255,1770507069888,-500.0,0.00043835,2]
[404750256,1770507069898,-500.0,0.00043835,2]
[404750257,1770507069910,-500.0,0.00043835,2]
[404750258,1770507069921,-500.0,0.00043835,120]
[404750259,1770507069931,-500.0,0.00043835,2]
[404750260,1770507069943,-500.0,0.00043835,120]
[404750261,1770507069956,-500.0,0.00043835,2]
[404750262,1770507069965,-500.0,0.00043835,2]
[404750263,1770507069975,-500.0,0.00043835,2]
[404750264,1770507069984,-199.19834239,0.00043835,120]
[404750265,1770507069993,-500.0,0.00043835,2]
[404750266,1770507070003,-246.36342289,0.00043835,2]
[404750267,1770507070012,-517.71491526,0.00043835,120]
[404750268,1770507070021,-546.15855015,0.00043835,120]
[404750269,1770507070030,-500.0,0.00043835,120]
[404750270,1770507070039,-500.0,0.00043835,120]
[404750271,1770507070050,-500.0,0.00043835,120]
[404750272,1770507070059,-500.0,0.00043835,2]
[404750273,1770507070069,-500.0,0.00043835,2]
[404750274,1770507070078,-391.02250849,0.00043835,120]
[404750275,1770507070087,-161.55018496,0.00043835,2]
[404750276,1770507070097,-500.0,0.00043835,120]
[404750277,1770507070106,-500.0,0.00043835,120]
[404750278,1770507070116,-500.0,0.00043835,120]
[404750279,1770507070125,-500.0,0.00043835,120]
[404750280,1770507070134,-500.0,0.00043835,120]
[404750281,1770507070143,-500.0,0.00043835,120]
[404750282,1770507070153,-500.0,0.00043835,120]
[404750283,1770507070163,-500.0,0.00043835,120]
[404750284,1770507070171,-500.0,0.00043835,120]
[404750285,1770507070181,-500.0,0.00043835,120]
[404750286,1770507070192,-500.0,0.00043835,120]
[404750287,1770507070203,-191.06052013,0.00043835,120]
[404750288,1770507070213,-523.28522367,0.00043835,120]
[404750289,1770507070224,-500.0,0.00043835,120]
[404750290,1770507070233,-500.0,0.00043835,120]
[404750291,1770507070244,-500.0,0.00043835,120]
[404750292,1770507070255,-508.22278729,0.00043835,120]
[404750293,1770507070266,-520.95925959,0.00043835,120]
[404750294,1770507070275,-5400.0,0.00043836,2]
[404750295,1770507070285,-1999.0,0.00043836,30]
[404750296,1770507070299,-20000.0,0.0004384,120]
[404750297,1770507070308,-382.85,0.000439,14]
[404750298,1770507070318,-1443.88138384,0.0004395,120]
[404750299,1770507070327,-500.0,0.00043999,120]
[404750300,1770507070338,-160.0,0.00044,7]
[404750301,1770507070347,-160.0,0.00044,120]
[404750302,1770507070356,-664.0597,0.00044,120]
[404750303,1770507070368,-444.08903806,0.00044,120]
[404750304,1770507070378,-1371.781911,0.00044,120]
[404750305,1770507070389,-150.0,0.00044,57]
[404750306,1770507070399,-5000.0,0.00044,120]
[404750307,1770507070409,-500.0,0.00044,120]
[404750308,1770507070419,-204.3298222,0.00044038,14]
[404750309,1770507070429,-164.79,0.00044038,120]
[404750310,1770507070439,-192.26236211,0.00044038,120]
[404750311,1770507070450,-192.26,0.00044038,120]
[404750312,1770507070459,-251.93847808,0.00044039,19]
[404750313,1770507070468,-1753.95926853,0.00044056,120]
[404750314,1770507070478,-300.0,0.0004407,3]
[404750315,1770507070488,-1823.33457415,0.00044074,15]
[404750316,1770507070498,-3174.53686387,0.00044074,15]
[404750317,1770507070508,-312.94399393,0.00044074,28]
[404750318,1770507070518,-150.0,0.000441,29]
[404750319,1770507070528,-150.0,0.000441,29]
[404750320,1770507070538,-150.0,0.000441,73]
[404750321,1770507070547,-253.0,0.000441,45]
[404750322,1770507070556,-150.0,0.000441,2]
[404750323,1770507070566,-240.266667,0.000441,10]
[404750324,1770507070576,-200.0,0.000441,26]
[404750325,1770507070586,-1000.0,0.0004411,30]
[404750326,1770507070595,-267.46074303,0.00044112,31]
[404750327,1770507070604,-800.0,0.00044113,16]
[404750328,1770507070615,-800.0,0.00044113,16]
[404750329,1770507070624,-800.0,0.00044113,16]
[404750330,1770507070634,-800.0,0.00044113,16]
[404750331,1770507070643,-800.0,0.00044113,16]
[404750332,1770507070652,-800.0,0.00044113,16]
[404750333,1770507070663,-158.911982,0.00044118,7]
[404750334,1770507070673,-424.38,0.00044137,2]
[404750335,1770507070683,-424.38,0.00044137,2]
[404750336,1770507070693,-424.38,0.00044137,2]
[404750337,1770507070702,-424.38,0.00044137,2]
[404750338,1770507070712,-424.38,0.00044137,2]
[404750339,1770507070722,-424.38,0.00044137,2]
[404750340,1770507070732,-424.38,0.00044137,2]
[404750341,1770507070742,-424.38,0.00044137,2]
[404750342,1770507070752,-424.38,0.00044137,2]
[404750343,1770507070762,-424.38,0.00044137,2]
[404750344,1770507070773,-424.38,0.00044137,2]
[404750345,1770507070783,-424.38,0.00044137,2]
[404750346,1770507070793,-424.38,0.00044137,2]
[404750347,1770507070804,-424.38,0.00044137,2]
[404750348,1770507070813,-424.54768599,0.00044137,2]
[404750349,1770507070822,-500.0,0.00044137,120]
[404750350,1770507070831,-500.0,0.00044137,120]
[404750351,1770507070842,-151.09573601,0.00044137,120]
[404750352,1770507070853,-500.0,0.00044137,120]
[404750353,1770507070863,-500.0,0.00044137,120]
[404750354,1770507070872,-277.87190545,0.00044137,120]
[404750355,1770507070881,-465.32682327,0.00044137,120]
[404750356,1770507070892,-500.0,0.00044137,120]
[404750357,1770507070902,-500.0,0.00044137,120]
[404750358,1770507070913,-500.0,0.00044137,120]
[404750359,1770507070925,-500.0,0.00044137,120]
[404750360,1770507070935,-500.0,0.00044137,120]
[404750361,1770507070944,-500.0,0.00044137,120]
[404750362,1770507070954,-235.80326008,0.00044137,120]
[404750363,1770507070964,-514.65528398,0.00044137,120]
[404750364,1770507070974,-500.0,0.00044137,120]
[404750365,1770507070983,-611.91210551,0.00044137,120]
[404750366,1770507070994,-565.05634371,0.00044137,120]
[404750367,1770507071003,-500.0,0.00044137,120]
[404750368,1770507071015,-500.0,0.00044137,120]
[404750369,1770507071161,-500.0,0.00044137,120]
[404750370,1770507071171,-500.0,0.00044137,120]
[404750371,1770507071180,-500.0,0.00044137,120]
[404750372,1770507071190,-500.0,0.00044137,120]
[404750373,1770507071202,-496.18326471,0.00044137,120]
[404750374,1770507071211,-500.0,0.00044137,120]
[404750375,1770507071222,-351.2852974,0.00044137,120]
[404750376,1770507071234,-500.0,0.00044137,120]
[404750377,1770507071245,-500.0,0.00044137,120]
[404750378,1770507071254,-485.52204026,0.00044137,120]
[404750379,1770507071264,-500.0,0.00044137,120]
[404750380,1770507071274,-500.0,0.00044137,120]
[404750381,1770507071283,-249.07877966,0.00044137,120]
[404750382,1770507071296,-500.0,0.00044137,60]
[404750383,1770507071305,-500.0,0.00044137,60]
[404750384,1770507071315,-500.0,0.00044137,120]
[404750385,1770507071324,-500.0,0.00044137,60]
[404750386,1770507071335,-500.0,0.00044137,120]
[404750387,1770507071344,-500.0,0.00044137,60]
[404750388,1770507071354,-500.0,0.00044137,120]
[404750389,1770507071363,-500.0,0.00044137,60]